Cogmind - Beta 12 X1 *** ADVENTURER MODE // 2022.07.05 @ 12:11:54 Player: Lyra Result: Destroyed by P-80 Master with Gamma Rifle Performance ------------- Evolutions (7) 3500 Regions Visited (24) 4800 Robots Destroyed (551) 2755 Value Destroyed (24939) 24939 Prototype IDs (25) 500 Alien Tech Used (0) 0 Bonus (9039) 9039 TOTAL SCORE: 45533 Bonus ------- High Alert Combat Kills 7298 Follower Combat Kills 342 Entered Garrisons 600 Met Data Miner 300 Met Imprinter 300 Met R17 at Cetus 500 Friendly Fire -301 Cogmind --------- Core Integrity 0/1300 Matter 241/300 Energy 99/100 System Corruption 43% Temperature Cool (0) Movement Core (50) Location -3/Research Parts ------- > --- POWER (2) -------- (None) > --- PROPULSION (4) --- Advanced Heavy Siege Treads Improved Gyrokinetic Inverter Improved Gyrokinetic Inverter > --- UTILITY (11) ----- Enhanced Optical Array Advanced Target Analyzer > --- WEAPON (4) ------- (None) > --- INVENTORY (5) ---- Micro Antimatter Reactor Matter Compressor (250) Matter Compressor (250) Peak State ------------ > --- POWER ------------ Reinforced Fission Core Light Quantum Reactor > --- PROPULSION ------- Centrium Heavy Treads Centrium Heavy Treads > --- UTILITY ---------- Advanced Cooling System Advanced Cooling System Huge Storage Unit Enhanced Optical Array Advanced Signal Interpreter Improved Weapon Cycler Improved Medium Armor Plating Centrium Medium Armor Plating Medium Regenerative Plating Improved Thermal Shield Improved Remote Force Field > --- WEAPON ----------- Dispersion Rifle Quantum Rifle Quantum Rifle KE Penetrator > --- INVENTORY -------- Neutrino Core Improved Heavy Siege Treads Centrium Heavy Treads Advanced Heat Sink High-capacity Storage Unit Matter Compressor Matter Compressor Advanced Sensor Array Encrypted Comm Array Improved Kinecellerator Improved Thermal Defense Suite EM Disruption Field Advanced Force Field Hacking Suite Gamma Rifle Dispersion Rifle Dispersion Rifle Rocket Launcher Rocket Launcher Improved Plasma Cutter CR-A16's Pointy Stick [Rating: 156] Favorites ----------- Power Quantum Reactor Engine Cooled Ion Engine Power Core Light Fission Core Reactor Quantum Reactor Propulsion Light Treads Treads Light Treads Leg Flexi-carbon Leg Wheel Wheel Hover Unit Improved Gyrokinetic Inverter Utility Advanced Heat Sink Device Advanced Heat Sink Storage Huge Storage Unit Processor Enhanced Optical Array Hackware Hacking Suite Protection Centrium Medium Armor Plating Weapon Enhanced Autogun Energy Gun Spread Laser Energy Cannon Matter Neutralizer Ballistic Gun Enhanced Autogun Ballistic Cannon Heavy Mass Driver Launcher Rocket Launcher Special Weapon Plasma Cutter Impact Weapon Hammer Build | -11 -10 -9 -8 -8 -8 -7 -7 -7 -7 -6 -6 -6 -6 -6 -6 -5 -5 -5 -5 -5 -5 -4 -4 -3 ------- Run | Scr Mat Mat Mat Sto Gar Fac Low Low Dat Pro Fac Gar Fac Low Zio Pro Fac Ext Cet Arc Hub Fac Gar Res Slots Evolved 14 | . . 2 2 . . 2 . . . . 2 . . . . . 2 . . . . 2 . 2 Power 1 | . . . . . . . . . . . 1 . . . . . . . . . . . . . Propulsion 2 | . . . . . . 2 . . . . . . . . . . . . . . . . . . Utility 9 | . . 1 1 . . . . . . . 1 . . . . . 2 . . . . 2 . 2 Weapon 2 | . . 1 1 . . . . . . . . . . . . . . . . . . . . . Parts Attached 381 | . 11 17 10 16 15 3 4 4 4 6 16 28 45 2 . 4 34 39 20 2 4 2 19 76 Power 36 | . 1 2 . 1 2 . 1 . . . 1 5 6 . . . 3 2 3 . . . 4 5 Engine 12 | . 1 2 . 1 2 . 1 . . . 1 . 2 . . . 1 1 . . . . . . Core 13 | . . . . . . . . . . . . 4 1 . . . 2 1 1 . . . 2 2 Reactor 11 | . . . . . . . . . . . . 1 3 . . . . . 2 . . . 2 3 Propulsion 80 | . 3 5 4 1 8 1 . . . . 2 5 15 . . . 8 11 3 . . . . 14 Treads 53 | . 2 5 4 1 4 1 . . . . 2 5 9 . . . 3 5 3 . . . . 9 Leg 19 | . . . . . 4 . . . . . . . 2 . . . 5 6 . . . . . 2 Wheel 6 | . 1 . . . . . . . . . . . 4 . . . . . . . . . . 1 Hover 2 | . . . . . . . . . . . . . . . . . . . . . . . . 2 Flight . | . . . . . . . . . . . . . . . . . . . . . . . . . Utility 141 | . 1 3 2 6 2 2 3 2 . 3 7 5 15 2 . . 10 16 6 1 4 2 10 39 Device 87 | . 1 2 1 3 1 . 1 2 . 2 6 3 10 2 . . 3 9 4 1 4 1 7 24 Storage 3 | . . 1 . . . 1 . . . . . . 1 . . . . . . . . . . . Processor 11 | . . . . . . 1 . . . . . 1 1 . . . 2 1 . . . 1 . 4 Hackware 1 | . . . . . . . . . . . . . . . . . . . . . . . . 1 Protection 39 | . . . 1 3 1 . 2 . . 1 1 1 3 . . . 5 6 2 . . . 3 10 Artifact . | . . . . . . . . . . . . . . . . . . . . . . . . . Weapon 124 | . 6 7 4 8 3 . . 2 4 3 6 13 9 . . 4 13 10 8 1 . . 5 18 Energy Gun 51 | . 5 6 . 2 . . . . . 2 3 4 . . . . 4 7 1 . . . 2 15 Energy Cannon 4 | . . . . . . . . . . . . . . . . . . . 2 . . . 2 . Ballistic Gun 40 | . . 1 3 5 2 . . 2 4 1 1 6 1 . . . 5 3 3 1 . . 1 1 Ballistic Cannon 14 | . . . . . . . . . . . . 2 6 . . 2 3 . 1 . . . . . Launcher 12 | . . . 1 1 . . . . . . 2 . 2 . . 2 1 . 1 . . . . 2 Special Weapon 2 | . . . . . 1 . . . . . . 1 . . . . . . . . . . . . Impact Weapon 1 | . 1 . . . . . . . . . . . . . . . . . . . . . . . Slashing Weapon . | . . . . . . . . . . . . . . . . . . . . . . . . . Piercing Weapon . | . . . . . . . . . . . . . . . . . . . . . . . . . Special Melee Weapon . | . . . . . . . . . . . . . . . . . . . . . . . . . Unidentified Prototypes 14 | . . 4 . 1 . . . . . . . . . . . . 1 1 4 . . . . 3 Parts Lost 108 | . . 2 1 . 4 . 1 1 . 2 1 15 17 . . 1 11 7 1 . 1 . 5 38 Power 17 | . . . . . 1 . . . . . . 5 4 . . . 1 . 1 . . . 2 3 Propulsion 19 | . . 1 . . 1 . . . . . . 2 4 . . . 3 3 . . . . . 5 Utility 36 | . . . 1 . 1 . 1 . . 1 1 2 6 . . . 3 1 . . 1 . 1 17 Weapon 36 | . . 1 . . 1 . . 1 . 1 . 6 3 . . 1 4 3 . . . . 2 13 Highest Loss Streak 11 | . . 1 1 . 2 . 1 1 . 2 1 5 2 . . 1 3 2 1 . 1 . 3 11 To Critical Strikes 5 | . . . . . . . . . . . . . . . . 1 2 . . . . . . 2 Average Slot Usage (%) 86 | . 88 95 99 95 87 76 78 83 55 83 85 83 74 85 86 88 96 97 90 88 87 89 86 80 Engine 3 | . 14 10 9 8 8 7 7 7 7 7 13 1 3 . . . . 4 1 . . . . . Core 3 | . . . . . . . . . . . . 9 2 6 6 6 8 4 4 . . . . 4 Reactor 1 | . . . . . . . . . . . . 1 2 . . . . . 4 11 11 10 8 3 Treads 15 | . 14 21 18 18 15 15 15 15 15 15 13 13 19 26 26 26 19 6 13 11 11 10 10 7 Leg 1 | . . . . . . . . . . . . . 1 . . . 3 14 . . . . . . Device 15 | . 3 21 17 14 9 6 6 7 7 7 13 18 7 19 20 20 15 14 16 17 16 21 18 21 Storage 6 | . 14 11 9 9 9 7 7 7 7 7 6 6 6 6 6 6 5 5 5 5 5 5 5 3 Processor 5 | . . . . . . . . . . . . 4 3 6 6 6 7 11 11 11 11 15 10 10 Protection 7 | . . . 9 9 8 7 9 15 15 14 12 2 7 . . . 8 7 5 5 5 5 9 8 Energy Gun 6 | . 25 29 18 4 . . . . . 9 12 13 . . . . 1 7 4 5 5 5 4 9 Ballistic Gun 12 | . . . 17 31 34 30 30 29 2 20 13 7 . 6 6 6 6 15 10 17 17 15 11 6 Ballistic Cannon 4 | . . . . . . . . . . . . 1 14 13 13 15 13 . 1 . . . . . Naked Turns . | . . . . . . . . . . . . . . . . . . . . . . . . . Heaviest Build 183 | 14 15 59 65 76 77 117 118 118 118 121 133 144 157 126 126 126 136 138 162 155 162 157 174 183 Greatest Support 160 | 20 20 40 40 40 75 150 150 150 150 150 150 150 150 80 80 80 93 113 160 160 160 160 160 160 Greatest Overweight (x) 48 | . . 3 1 1 5 . . . . . . 1 15 1 1 1 5 3 1 . 1 . 1 48 Average Overweight (x) . | . . . 1 1 . . . . . . . . 1 1 1 1 1 1 . . . . . 1 Largest Inventory Capacity 25 | . 8 20 20 20 20 25 25 25 25 25 25 25 25 25 25 25 25 25 25 25 25 25 25 25 Average Capacity 23 | . 8 19 20 20 20 24 25 25 25 25 25 25 25 25 25 25 25 25 25 25 25 25 25 23 Most Carried 25 | . 8 20 20 20 20 25 25 23 23 25 25 25 25 23 25 25 25 25 25 25 25 24 25 25 Average Carried 21 | . 7 14 19 19 19 20 24 22 23 24 24 22 23 22 23 24 24 24 24 25 24 23 22 20 Final Capacity 25 | 8 8 20 20 20 20 25 25 25 25 25 25 25 25 25 25 25 25 25 25 25 25 25 25 5 Final Carried 25 | 6 8 20 20 20 19 25 23 23 23 25 24 25 23 22 25 24 24 25 25 25 25 23 25 3 Class Distribution -------------------- 55% | Scavenger-Tank 14% | Tank 13% | Scavenger-Gunner 12% | Scavenger-Mutant 3% | Mutant Dominant Class ---------------- Mutant | -10/Materials Scavenger-Gunner | -9/Materials Scavenger-Tank | -8/Materials Tank | -8/Storage Tank | -8/Garrison Tank | -7/Factory Scavenger-Tank | -7/Lower Caves Scavenger-Tank | -7/Lower Caves Scavenger-Mutant | -7/Data Miner Scavenger-Tank | -6/Proximity Caves Scavenger-Tank | -6/Factory Scavenger-Gunner | -6/Garrison Scavenger-Tank | -6/Factory Scavenger-Tank | -6/Lower Caves Scavenger-Tank | -6/Zion Scavenger-Mutant | -5/Proximity Caves Scavenger-Tank | -5/Factory Scavenger-Tank | -5/Extension Scavenger-Tank | -5/Cetus Scavenger-Tank | -5/Archives Scavenger-Tank | -5/Hub_04(d) Scavenger-Tank | -4/Factory Scavenger-Tank | -4/Garrison Scavenger-Tank | -3/Research Resources | -11 -10 -9 -8 -8 -8 -7 -7 -7 -7 -6 -6 -6 -6 -6 -6 -5 -5 -5 -5 -5 -5 -4 -4 -3 ----------- Run | Scr Mat Mat Mat Sto Gar Fac Low Low Dat Pro Fac Gar Fac Low Zio Pro Fac Ext Cet Arc Hub Fac Gar Res Matter Collected 16890 | 183 227 180 320 742 1237 75 371 135 . 431 450 1230 3836 . 47 81 1953 1460 554 198 395 . 796 1989 Remotely . | . . . . . . . . . . . . . . . . . . . . . . . . . Salvage Created 27243 | . 349 1380 1117 1180 1905 75 710 44 . 497 757 1489 3866 . . 48 3070 1114 986 347 1238 . 1559 5512 Parts 1240 | . 16 60 57 59 100 7 24 5 . 23 36 79 150 . . 8 137 50 51 12 62 . 89 215 Haulers Intercepted 11 | . . 2 2 4 . . . . . . . . . . . . 1 . . . . . . 2 Recyclers Shooed 27 | . 1 4 1 . . . . . . . 6 . 6 . . . 6 . . . . . . 3 Parts Field Recycled . | . . . . . . . . . . . . . . . . . . . . . . . . . Retrieved Matter . | . . . . . . . . . . . . . . . . . . . . . . . . . Parts Self-Destructed 53 | . . . . . . . 25 5 . 19 . . . . . 4 . . . . . . . . Prevented . | . . . . . . . . . . . . . . . . . . . . . . . . . Kills | -11 -10 -9 -8 -8 -8 -7 -7 -7 -7 -6 -6 -6 -6 -6 -6 -5 -5 -5 -5 -5 -5 -4 -4 -3 ------- Run | Scr Mat Mat Mat Sto Gar Fac Low Low Dat Pro Fac Gar Fac Low Zio Pro Fac Ext Cet Arc Hub Fac Gar Res Combat Hostiles Destroyed 430 | . 7 22 15 17 39 1 12 1 . 8 18 40 61 . . 5 41 12 18 4 16 . 30 63 Melee 1 | . 1 . . . . . . . . . . . . . . . . . . . . . . . Guns 320 | . 5 21 15 17 38 1 12 1 . 8 12 36 1 . . . 23 12 13 4 16 . 25 60 Cannons 86 | . . . . . 1 . . . . . . 3 57 . . 1 18 . 2 . . . 4 . AOE 16 | . . . . . . . . . . . 6 . 3 . . 4 . . 2 . . . 1 . Classes Destroyed 21 | . 5 4 2 . 1 . 1 . . 2 . . 4 . . . . . . . . . 1 1 Worker 22 | . 1 2 4 1 . . . . . . 1 . 5 . . . 4 . . . . . . 4 Builder 27 | . . 1 2 . . . . . . . 5 . 12 . . . 2 1 . . 3 . . 1 Tunneler 2 | . . . . . . . . . . . . . 1 . . . 1 . . . . . . . Hauler 11 | . . 2 2 4 . . . . . . . . . . . . 1 . . . . . . 2 Recycler 35 | . 1 4 3 1 . . . . . . 2 . 12 . . . 6 2 . . 1 . . 3 Mechanic 3 | . . . . . . . . . . . . . 1 . . . . . . . . . . 2 Operator 7 | . . . 2 . . . . . . . 1 . 1 . . . 2 . . . 1 . . . Watcher 14 | . 1 1 1 2 . . . . . . . . 2 . . . 4 . 1 . 1 . . 1 Swarmer 82 | . 3 6 4 2 12 . . . . . 7 14 4 . . 5 5 . 4 . . . 10 6 Cutter 4 | . . . . . . . . . . . . . . . . . . . . . . . 4 . Saboteur 2 | . . . . . . . . . . . . . 2 . . . . . . . . . . . Grunt 161 | . 4 9 8 7 17 . 5 . . 5 8 13 29 . . . 15 2 4 . 11 . 5 19 Brawler 19 | . . 1 . . 2 . 2 . . . 1 . 5 . . . . 1 . . . . 1 6 Duelist 9 | . . . . . . . 3 . . . . . 2 . . . . . . . . . . 4 Protector 1 | . . . . . . . . . . . . . 1 . . . . . . . . . . . Sentry 59 | . . 6 2 8 5 1 1 . . 1 1 3 7 . . . 5 2 . 4 3 . 4 6 Specialist 6 | . . . . . 3 . . . . . . 3 . . . . . . . . . . . . Hunter 33 | . . . 1 . . . 1 1 . 1 . 6 8 . . . 9 4 . . . . . 2 Programmer 40 | . . . . . . . . . . 1 1 . 2 . . . 7 1 2 . 2 . 5 19 Behemoth 6 | . . . . . . . . . . 1 . 1 1 . . . . 2 . . . . 1 . Cetus Guard 8 | . . . . . . . . . . . . . . . . . . . 8 . . . . . Fireman 2 | . . . . . . . . . . . . . . . . . . . . . . . . 2 Best Kill Streak 11 | . 5 8 6 4 7 1 8 1 . 3 11 7 11 . . 5 11 3 6 4 9 . 5 5 Combat Bots Only 9 | . 5 4 4 3 7 1 8 1 . 3 8 7 9 . . 5 5 3 6 4 5 . 5 5 Max Kills in Single Turn 4 | . 1 2 3 3 2 1 2 1 . 1 3 2 4 . . 2 2 1 2 1 2 . 2 2 Gunslinging 2 | . . 1 2 1 1 . 1 . . . . 1 . . . . 1 . . . . . 1 1 Exploded 3 | . . . . . . . . . . . 2 . 3 . . 2 . . 2 . . . 1 . Melee 1 | . 1 . . . . . . . . . . . . . . . . . . . . . . . Uniques/NPCs Destroyed . | . . . . . . . . . . . . . . . . . . . . . . . . . Combat | -11 -10 -9 -8 -8 -8 -7 -7 -7 -7 -6 -6 -6 -6 -6 -6 -5 -5 -5 -5 -5 -5 -4 -4 -3 -------- Run | Scr Mat Mat Mat Sto Gar Fac Low Low Dat Pro Fac Gar Fac Low Zio Pro Fac Ext Cet Arc Hub Fac Gar Res Damage Taken 28485 | . 409 601 469 309 1075 141 233 46 . 583 918 2472 4232 . . 141 2316 1813 1209 226 481 . 2483 8328 Core 2973 | . 89 90 62 19 51 8 . . . 26 79 136 447 . . 16 165 135 119 . 31 . 199 1301 Absorbed by Shields 1901 | . . . . 34 . . . . . . 175 . 223 . . 58 211 7 . . 407 . . 786 Reduced by Siege Mode 378 | . . . . . . . . . . . . . 20 . . . . . . . . . 107 251 Redirected to Shielding 72 | . . . . . . . . . . . . . . . . . . . . . . . . 72 Regen/Repaired (Parts) 999 | . . . . . . . . . . . . . . . . . . 371 30 . . . 130 468 Core Remaining (%) 71 | 100 64 77 . . 76 . . . . 95 . . . . . 20 . . . . 55 . 82 . Volleys Fired 1203 | . 19 63 40 41 83 2 22 3 . 29 48 114 152 . 1 7 122 51 38 14 36 . 76 242 Largest 4 | . 2 3 4 4 4 4 4 4 . 4 4 4 3 . 1 3 4 4 4 4 4 . 4 4 Hottest 351 | . 100 168 158 158 100 100 100 100 . 183 223 268 176 . 75 161 241 226 241 185 310 . 345 351 Shots Fired 3682 | . 32 169 150 153 301 8 87 12 . 115 140 346 322 . 1 14 405 181 128 45 129 . 239 705 Gun 3061 | . 32 169 148 152 278 8 87 12 . 115 135 331 19 . . 3 237 181 73 45 129 . 204 703 Cannon 567 | . . . . . . . . . . . . 8 297 . 1 6 166 . 54 . . . 35 . Launcher 24 | . . . 2 1 . . . . . . 5 . 6 . . 5 2 . 1 . . . . 2 Special 30 | . . . . . 23 . . . . . . 7 . . . . . . . . . . . . Kinetic 2321 | . . . 76 140 278 8 87 12 . 102 56 103 316 . 1 9 332 124 77 42 93 . 146 319 Thermal 1223 | . 28 169 72 12 23 . . . . 13 79 243 . . . . 55 55 50 3 36 . 41 344 Explosive 24 | . . . 2 1 . . . . . . 5 . 6 . . 5 2 . 1 . . . . 2 Electromagnetic 114 | . 4 . . . . . . . . . . . . . . . 16 2 . . . . 52 40 Robot Hit Streak 64 | . 6 24 24 37 64 14 12 10 . 21 37 51 18 . . 4 20 25 30 25 41 . 46 43 Robot Miss Streak 8 | . 1 3 3 3 5 . 3 1 . 3 4 8 5 . . 4 4 2 2 1 2 . 3 7 Penetration Max 3 | . . . . . . . . . . . 1 1 3 . . . 1 1 1 . 1 . 1 1 Secondary Targets 78 | . 1 1 7 2 17 . 4 . . 1 1 9 . . . . 4 4 . . 5 . 8 14 Max Gunslinging Chain 3 | . 1 1 3 1 1 . 1 . . 1 1 2 . . . . 1 1 . . 1 . 1 1 Shots Hit Robots 2779 | . 33 124 101 107 219 7 67 9 . 92 124 241 227 . . 7 292 148 95 40 103 . 185 558 Core Hits 1472 | . 13 51 47 43 80 3 31 3 . 42 153 275 122 . . 5 167 49 42 16 42 . 70 218 Critical Kills 36 | . . . . . . . . . . . . 1 1 . . . 4 1 4 1 6 . 7 11 Critical Parts Destroyed 75 | . 2 . . . 1 . 1 . . 1 . 1 8 . . . 3 3 4 1 9 . 14 27 Critical Strikes 192 | . 5 13 7 2 2 . 1 . . 1 . 4 35 . . . 19 11 8 5 15 . 23 41 Burn 33 | . 3 13 7 1 . . . . . . . 2 . . . . . 6 . . . . . 1 Meltdown 1 | . . . . . . . . . . . . . . . . . . . 1 . . . . . Destroy 117 | . . . . 1 1 . 1 . . 1 . 2 9 . . . 7 5 7 5 15 . 23 40 Blast 38 | . . . . . . . . . . . . . 26 . . . 12 . . . . . . . Smash 2 | . 2 . . . . . . . . . . . . . . . . . . . . . . . Sever 1 | . . . . . 1 . . . . . . . . . . . . . . . . . . . Melee Attacks 9 | . 9 . . . . . . . . . . . . . . . . . . . . . . . Impact 9 | . 9 . . . . . . . . . . . . . . . . . . . . . . . Slashing . | . . . . . . . . . . . . . . . . . . . . . . . . . Piercing . | . . . . . . . . . . . . . . . . . . . . . . . . . Sneak Attacks . | . . . . . . . . . . . . . . . . . . . . . . . . . Combat Hostiles . | . . . . . . . . . . . . . . . . . . . . . . . . . Follow-up Attacks . | . . . . . . . . . . . . . . . . . . . . . . . . . Damage Inflicted 71857 | . 554 1717 1866 1846 3648 125 1105 118 . 1668 2813 4564 13157 . . 493 7026 3194 3035 1051 3236 . 4799 15842 Guns 50929 | . 333 1717 1657 1846 3431 125 1105 118 . 1668 2089 4142 166 . . 12 3987 3172 1412 1051 3236 . 3966 15696 Cannons 17284 | . . . . . . . . . . . . 347 11895 . . 116 2744 . 1465 . . . 717 . Explosions 2939 | . . . 209 . . . . . . . 724 . 1019 . . 365 276 . 158 . . . 116 72 Melee 220 | . 220 . . . . . . . . . . . . . . . . . . . . . . . Ramming 193 | . 1 . . . . . . . . . . . 77 . . . 19 22 . . . . . 74 Kinetic 45853 | . . . 757 1694 3431 125 1105 118 . 1418 833 1493 12061 . . 128 5184 2167 1452 1000 2302 . 3395 7190 Thermal 21646 | . 287 1717 900 152 217 . . . . 250 1256 3071 110 . . . 1417 976 1425 51 934 . 969 7914 Explosive 2627 | . . . 209 . . . . . . . 724 . 909 . . 365 190 . 158 . . . . 72 Electromagnetic 1318 | . 46 . . . . . . . . . . . . . . . 216 29 . . . . 435 592 Impact 220 | . 220 . . . . . . . . . . . . . . . . . . . . . . . Slashing . | . . . . . . . . . . . . . . . . . . . . . . . . . Piercing . | . . . . . . . . . . . . . . . . . . . . . . . . . Highest Corruption 42 | . . . . . . 3 3 3 3 3 . . 4 4 . . 2 2 . . . . 2 42 Average Corruption 6 | . . . . . . 3 3 3 3 3 . . 3 3 . . 1 1 . . . . 1 14 Corruption Purged 6 | . . . . . . . . . . . . . . 4 . . . 2 . . . . . . Corruption Blocked . | . . . . . . . . . . . . . . . . . . . . . . . . . Effects 219 | . . . . . . 1 7 11 4 17 . . 49 . . . 7 2 . . . . 15 106 Message Errors 46 | . . . . . . . 3 2 1 2 . . 12 . . . 3 1 . . . . 3 19 Matter Fused 45 | . . . . . . 1 2 3 2 5 . . 9 . . . . . . . . . 2 21 Heat Flow Errors 33 | . . . . . . . . 3 1 1 . . 9 . . . 1 . . . . . 5 13 Energy Discharges 27 | . . . . . . . . 1 . 2 . . 8 . . . 1 1 . . . . 3 11 Parts Rejected 1 | . . . . . . . . . . . . . . . . . . . . . . . . 1 Data Loss (minor) 19 | . . . . . . . 1 1 . 2 . . 3 . . . 1 . . . . . 2 9 Data Loss (major) 7 | . . . . . . . . . . . . . 4 . . . . . . . . . . 3 Misfires 7 | . . . . . . . . 1 . 2 . . 1 . . . . . . . . . . 3 Alerts 4 | . . . . . . . . . . 1 . . 1 . . . . . . . . . . 2 Misdirections 8 | . . . . . . . . . . . . . . . . . . . . . . . . 8 Weapon Failures 22 | . . . . . . . 1 . . 2 . . 2 . . . 1 . . . . . . 16 Overload Shots 5 | . . . . . . . . . . . . . . . . . . . . . 4 . 1 . Effects 2 | . . . . . . . . . . . . . . . . . . . . . 1 . 1 . Energy Bleed 1 | . . . . . . . . . . . . . . . . . . . . . 1 . . . Heat Surge 1 | . . . . . . . . . . . . . . . . . . . . . . . 1 . Overflow Damage 1530 | . 67 . . . . . . . . . 16 . 1279 . . 49 82 . 37 . . . . . Projectiles 1329 | . . . . . . . . . . . . . 1279 . . 23 10 . 17 . . . . . Explosions 134 | . . . . . . . . . . . 16 . . . . 26 72 . 20 . . . . . Melee 67 | . 67 . . . . . . . . . . . . . . . . . . . . . . . Knockbacks 60 | . . . . . . . . . . . . 1 43 . . . 13 . 1 . . . . 2 Impact 4 | . . . . . . . . . . . . . 1 . . . 1 . . . . . . 2 Kinetic 53 | . . . . . . . . . . . . 1 40 . . . 11 . 1 . . . . . Secondary 3 | . . . . . . . . . . . . . 2 . . . 1 . . . . . . . Self-Inflicted Damage 162 | . . . 54 . 44 . . . . . . . . . . . . . . . . . 26 38 Shots 4 | . . . 1 . 1 . . . . . . . . . . . . . . . . . 1 1 Rammed 23 | . 1 . . . . . . . . . . . 7 . . . 1 . . . . . . 14 Targets Rammed 27 | . 1 . . . . . . . . . . . 8 . . . 2 1 . . . . . 15 Kicked 1 | . . . . . . . . . . . . . . . . . . 1 . . . . . . Crushed 3 | . . . . . . . . . . . . . 1 . . . 1 . . . . . . 1 Highest Temperature 651 | . 364 153 166 220 203 59 375 227 211 411 451 291 651 . . 30 451 446 345 6 348 . 350 644 Average Temperature 116 | . 172 45 43 65 76 40 142 94 113 108 123 58 137 . . 15 96 188 117 4 92 . 69 153 Received Heat Transfer 7165 | . 270 297 225 126 459 30 72 . . 123 351 627 1350 . . . 675 321 117 45 270 . 417 1390 Effects 104 | . 2 . . . . . . . . 2 4 . 41 . . . 8 15 . . 3 . 1 28 Shutdowns 45 | . . . . . . . . . . 1 3 . 15 . . . 3 4 . . . . 1 18 Energy Bleed 13 | . . . . . . . . . . . . . 6 . . . 2 1 . . 1 . . 3 Interference 26 | . 2 . . . . . . . . . . . 8 . . . 3 9 . . 2 . . 2 Matter Decay 5 | . . . . . . . . . . . . . 4 . . . . . . . . . . 1 Short Circuit 5 | . . . . . . . . . . 1 . . 2 . . . . . . . . . . 2 Damage (minor) 4 | . . . . . . . . . . . 1 . 1 . . . . 1 . . . . . 1 Damage (major) 4 | . . . . . . . . . . . . . 3 . . . . . . . . . . 1 Damage (core) 2 | . . . . . . . . . . . . . 2 . . . . . . . . . . . Siege Activations 8 | . . . . . . . . . . . . . 1 . . . . . . . . . 3 4 Total Turns 202 | . . . . . . . . . . . . . 25 . . . . . . . . . 80 97 Longest Duration 50 | . . . . . . . . . . . . . 25 . . . . . . . . . 46 50 Robots Corrupted . | . . . . . . . . . . . . . . . . . . . . . . . . . Combat Hostiles . | . . . . . . . . . . . . . . . . . . . . . . . . . Parts Fried 6 | . 1 . . . . . . . . . . . . . . . 2 . . . . . . 3 Impact Corruptions 3 | . 3 . . . . . . . . . . . . . . . . . . . . . . . Robots Melted 8 | . . 3 . . . . . . . . . 1 . . . . . . 1 . . . . 3 Combat Hostiles 6 | . . 1 . . . . . . . . . 1 . . . . . . 1 . . . . 3 Parts Melted 71 | . 1 25 6 . 4 . . . . . 3 2 . . . . 3 3 2 . . . . 22 Heat Transferred 37377 | . 1073 5587 2479 407 740 . . . . 285 1575 4254 50 . . . 3050 2497 2009 74 1086 . 1192 11019 Parts Sabotaged 6 | . . . . . . . . . . . . . 2 . . . . . . . . . . 4 Parts Stolen . | . . . . . . . . . . . . . . . . . . . . . . . . . Parts Stripped . | . . . . . . . . . . . . . . . . . . . . . . . . . Power Chain Reactions 1 | . . . . . . . . . . . . . . . . . . . . . . . 1 . Missiles Intercepted . | . . . . . . . . . . . . . . . . . . . . . . . . . Alert | -11 -10 -9 -8 -8 -8 -7 -7 -7 -7 -6 -6 -6 -6 -6 -6 -5 -5 -5 -5 -5 -5 -4 -4 -3 ------- Run | Scr Mat Mat Mat Sto Gar Fac Low Low Dat Pro Fac Gar Fac Low Zio Pro Fac Ext Cet Arc Hub Fac Gar Res Peak Influence 1628 | . 220 442 450 239 1596 789 . . . . 392 1628 1564 . . . 520 250 481 233 562 216 1568 1548 Initial 767 | . . 79 72 162 137 726 . . . . . 241 740 . . . 55 171 3 94 67 206 133 767 Average 683 | . 93 252 245 126 887 740 . . . . 90 886 1216 . . . 135 82 234 199 350 206 947 1213 Maximum Alert Level 5 | . 1 2 2 1 4 3 . . . . 1 5 4 . . . 2 1 2 1 2 1 4 4 Low Security (%) 28 | . 71 33 39 88 4 . . . . . 86 . . . . . 77 93 35 33 17 . 7 . Level 1 14 | . 28 61 49 11 12 . . . . . 13 11 . . . . 16 6 51 66 46 100 4 . Level 2 8 | . . 4 11 . 22 . . . . . . 20 . . . . 6 . 12 . 36 . 21 . Level 3 16 | . . . . . 21 100 . . . . . 44 20 . . . . . . . . . 22 24 Level 4 31 | . . . . . 39 . . . . . . 21 79 . . . . . . . . . 43 75 Level 5 . | . . . . . . . . . . . . 1 . . . . . . . . . . . . High Security . | . . . . . . . . . . . . . . . . . . . . . . . . . Max Security . | . . . . . . . . . . . . . . . . . . . . . . . . . Squads Dispatched 62 | . 1 1 1 1 . 2 . . . . 3 . 21 . . . 10 . 1 . 3 . . 18 Investigation 9 | . 1 1 . . . 1 . . . . . . 3 . . . 1 . 1 . 1 . . . Extermination 16 | . . . . . . 1 . . . . 1 . 3 . . . 4 . . . . . . 7 Reinforcement 14 | . . . 1 1 . . . . . . 1 . 4 . . . 5 . . . 1 . . 1 Assault 21 | . . . . . . . . . . . . . 11 . . . . . . . 1 . . 9 Garrison 2 | . . . . . . . . . . . 1 . . . . . . . . . . . . 1 Intercept . | . . . . . . . . . . . . . . . . . . . . . . . . . Searches Triggered . | . . . . . . . . . . . . . . . . . . . . . . . . . Data Miner Redirects 13 | . . . . . . . . . . . . . 9 . . . . . . . 1 . . 3 Construction Impeded 2 | . . . . . . . . . . . . . 1 . . . 1 . . . . . . . Haulers Reinforced 3 | . . . . . . . . . . . . . 1 . . . 1 . . . . . . 1 Active Scanning Responses . | . . . . . . . . . . . . . . . . . . . . . . . . . Cargo Convoy Interrupts . | . . . . . . . . . . . . . . . . . . . . . . . . . Stealth | -11 -10 -9 -8 -8 -8 -7 -7 -7 -7 -6 -6 -6 -6 -6 -6 -5 -5 -5 -5 -5 -5 -4 -4 -3 --------- Run | Scr Mat Mat Mat Sto Gar Fac Low Low Dat Pro Fac Gar Fac Low Zio Pro Fac Ext Cet Arc Hub Fac Gar Res Distress Signals 14 | . . 1 . 1 . . . . . . 4 . 1 . . . 4 . 1 . . . . 2 Communications Jammed . | . . . . . . . . . . . . . . . . . . . . . . . . . Distress Signals . | . . . . . . . . . . . . . . . . . . . . . . . . . Times Spotted 611 | . 10 26 21 20 40 1 13 1 . 9 26 45 84 . . 5 61 16 21 4 22 . 42 144 Peak Tracking Total 16 | . 4 3 5 4 6 1 9 1 . 4 7 4 6 . . 5 5 5 5 1 7 . 5 16 Tactical Retreats 43 | . . 1 1 1 . . . . . 1 1 . 7 . . . 2 2 . . 1 . 9 17 Traps | -11 -10 -9 -8 -8 -8 -7 -7 -7 -7 -6 -6 -6 -6 -6 -6 -5 -5 -5 -5 -5 -5 -4 -4 -3 ------- Run | Scr Mat Mat Mat Sto Gar Fac Low Low Dat Pro Fac Gar Fac Low Zio Pro Fac Ext Cet Arc Hub Fac Gar Res Traps Triggered 35 | . 1 . . 1 11 1 . . . . . 6 3 . . . . 5 . . . . 7 . Indirectly . | . . . . . . . . . . . . . . . . . . . . . . . . . Trap Hack Attempts . | . . . . . . . . . . . . . . . . . . . . . . . . . Triggered . | . . . . . . . . . . . . . . . . . . . . . . . . . Disarmed . | . . . . . . . . . . . . . . . . . . . . . . . . . Reprogrammed . | . . . . . . . . . . . . . . . . . . . . . . . . . Reused . | . . . . . . . . . . . . . . . . . . . . . . . . . Traps Extracted . | . . . . . . . . . . . . . . . . . . . . . . . . . Installed . | . . . . . . . . . . . . . . . . . . . . . . . . . Triggered 3 | . . . . . . . . . . . . . . . . 1 . . . . . . 1 1 Machines | -11 -10 -9 -8 -8 -8 -7 -7 -7 -7 -6 -6 -6 -6 -6 -6 -5 -5 -5 -5 -5 -5 -4 -4 -3 ---------- Run | Scr Mat Mat Mat Sto Gar Fac Low Low Dat Pro Fac Gar Fac Low Zio Pro Fac Ext Cet Arc Hub Fac Gar Res Machines Disabled 56 | . 1 2 2 1 2 . . . . . 1 3 14 . . . 13 3 . 1 3 . 7 3 Max in Single Turn 7 | . 1 1 1 1 2 . . . . . 1 2 3 . . . 7 1 . 1 1 . 2 1 Garrison Access 2 | . . . . . . . . . . . . . . . . . . . . . 1 . . 1 Garrison Relay 2 | . . . . . . . . . . . . 1 . . . . . . . . . . 1 . Phase Generator 3 | . . . . . 1 . . . . . . 1 . . . . . . . . . . 1 . Machines Sabotaged . | . . . . . . . . . . . . . . . . . . . . . . . . . Garrisons Compromised . | . . . . . . . . . . . . . . . . . . . . . . . . . Overloaded Fab Kills . | . . . . . . . . . . . . . . . . . . . . . . . . . Hacking | -11 -10 -9 -8 -8 -8 -7 -7 -7 -7 -6 -6 -6 -6 -6 -6 -5 -5 -5 -5 -5 -5 -4 -4 -3 --------- Run | Scr Mat Mat Mat Sto Gar Fac Low Low Dat Pro Fac Gar Fac Low Zio Pro Fac Ext Cet Arc Hub Fac Gar Res Machines Accessed 45 | . 2 2 2 5 3 3 . . 4 . 3 2 3 . . 1 4 2 1 1 4 2 1 . Terminals 32 | . 1 2 2 4 3 2 . . . . . 2 3 . . 1 3 2 1 . 4 1 1 . Fabricators 2 | . . . . . . . . . . . 1 . . . . . 1 . . . . . . . Repair Stations . | . . . . . . . . . . . . . . . . . . . . . . . . . Recycling Units 3 | . 1 . . . . 1 . . . . 1 . . . . . . . . . . . . . Scanalyzers . | . . . . . . . . . . . . . . . . . . . . . . . . . Garrison Access 3 | . . . . 1 . . . . . . 1 . . . . . . . . . . 1 . . Total Hacks 125 | . 4 6 7 8 8 7 . . 31 . 8 5 7 . . 1 11 3 3 1 8 4 3 . Successful 69 | . 4 1 4 3 3 4 . . 31 . 2 2 . . . 1 5 2 . 1 3 2 1 . Failed 56 | . . 5 3 5 5 3 . . . . 6 3 7 . . . 6 1 3 . 5 2 2 . Catastrophic 15 | . . 3 . 2 1 1 . . . . 1 1 . . . . 1 . 2 . 3 . . . Database Lockouts . | . . . . . . . . . . . . . . . . . . . . . . . . . Manual 37 | . . 6 5 5 2 1 . . . . . 2 3 . 1 . 7 . . 1 1 3 . . Terminals 77 | . 2 6 7 7 8 5 . . . . . 5 7 . . 1 9 3 3 . 8 3 3 . Fabricators 6 | . . . . . . . . . . . 4 . . . . . 2 . . . . . . . Repair Stations . | . . . . . . . . . . . . . . . . . . . . . . . . . Recycling Units 7 | . 2 . . . . 2 . . . . 3 . . . . . . . . . . . . . Scanalyzers . | . . . . . . . . . . . . . . . . . . . . . . . . . Garrison Access 3 | . . . . 1 . . . . . . 1 . . . . . . . . . . 1 . . Terminal Hacks 56 | . 2 1 3 2 3 2 . . 31 . . 2 . . . 1 2 2 . 1 3 . 1 . Record 13 | . . . . . . . . . 11 . . . . . . 1 . . . 1 . . . . Part Schematic 12 | . . . . . . . . . 12 . . . . . . . . . . . . . . . Robot Schematic 5 | . . . . . . . . . 5 . . . . . . . . . . . . . . . Prototype ID Bank 3 | . . . . . . . . . 3 . . . . . . . . . . . . . . . Open Door 1 | . . . . . 1 . . . . . . . . . . . . . . . . . . . Open DSF 1 | . . . . . . 1 . . . . . . . . . . . . . . . . . . Level Access Points 1 | . . . 1 . . . . . . . . . . . . . . . . . . . . . Branch Access Points 3 | . . 1 1 . . . . . . . . . . . . . 1 . . . . . . . Emergency Access Points 3 | . . . . . 1 . . . . . . 1 . . . . . . . . . . 1 . Terminal Index 2 | . . . . . . . . . . . . . . . . . . 1 . . 1 . . . Garrison Index 2 | . . . . . . . . . . . . . . . . . 1 . . . 1 . . . Alert Level 1 | . . . . . . . . . . . . . . . . . . . . . 1 . . . Unreport Threat 3 | . . . . 2 . . . . . . . . . . . . . 1 . . . . . . Locate Traps 2 | . 1 . 1 . . . . . . . . . . . . . . . . . . . . . Zone Layout 2 | . 1 . . . . 1 . . . . . . . . . . . . . . . . . . Patrol Navigation 1 | . . . . . 1 . . . . . . . . . . . . . . . . . . . Security Stations 1 | . . . . . . . . . . . . 1 . . . . . . . . . . . . Fabricator Hacks 2 | . . . . . . . . . . . 1 . . . . . 1 . . . . . . . Load Schematic 1 | . . . . . . . . . . . . . . . . . 1 . . . . . . . Build 1 | . . . . . . . . . . . 1 . . . . . . . . . . . . . Repair Station Hacks . | . . . . . . . . . . . . . . . . . . . . . . . . . Recycling Unit Hacks 4 | . 2 . . . . 2 . . . . . . . . . . . . . . . . . . Report Inventory 2 | . 1 . . . . 1 . . . . . . . . . . . . . . . . . . Retrieve Components 2 | . 1 . . . . 1 . . . . . . . . . . . . . . . . . . Scanalyzer . | . . . . . . . . . . . . . . . . . . . . . . . . . Garrison Access Hacks 3 | . . . . 1 . . . . . . 1 . . . . . . . . . . 1 . . Unlock Access 3 | . . . . 1 . . . . . . 1 . . . . . . . . . . 1 . . Unauthorized Hacks 4 | . . . 1 . . . . . . . . . . . . . 2 . . . . 1 . . Terminals 3 | . . . 1 . . . . . . . . . . . . . 1 . . . . 1 . . Botnet 3 | . . . 1 . . . . . . . . . . . . . 1 . . . . 1 . . Fabricators 1 | . . . . . . . . . . . . . . . . . 1 . . . . . . . Recompile 1 | . . . . . . . . . . . . . . . . . 1 . . . . . . . Repair Stations . | . . . . . . . . . . . . . . . . . . . . . . . . . Recycling Units . | . . . . . . . . . . . . . . . . . . . . . . . . . Scanalyzers . | . . . . . . . . . . . . . . . . . . . . . . . . . Garrison Access . | . . . . . . . . . . . . . . . . . . . . . . . . . Data Cores Recovered . | . . . . . . . . . . . . . . . . . . . . . . . . . Used . | . . . . . . . . . . . . . . . . . . . . . . . . . Hacking Detections 34 | . 2 2 2 4 3 1 . . . . 3 2 3 . . 1 2 2 1 . 4 1 1 . Full Trace Events 8 | . . 1 . . 1 1 . . . . . . 2 . . . . . 1 . 1 . 1 . Feedback Events 1 | . . . . . . . . . . . . . 1 . . . . . . . . . . . Corruption 1 | . . . . . . . . . . . . . 1 . . . . . . . . . . . Feedback Blocked . | . . . . . . . . . . . . . . . . . . . . . . . . . Robot Schematics Acquired 7 | . . . . . . . . . 5 . . . . . 2 . . . . . . . . . Robots Built . | . . . . . . . . . . . . . . . . . . . . . . . . . Authchips . | . . . . . . . . . . . . . . . . . . . . . . . . . Time . | . . . . . . . . . . . . . . . . . . . . . . . . . Total Robot Build Rating . | . . . . . . . . . . . . . . . . . . . . . . . . . Part Schematics Acquired 28 | . . . . . . . . . 12 . . . . . 16 . . . . . . . . . Parts Built 2 | . . . . . . . . . . . 2 . . . . . . . . . . . . . Authchips . | . . . . . . . . . . . . . . . . . . . . . . . . . Time 64 | . . . . . . . . . . . 64 . . . . . . . . . . . . . Total Part Build Rating 16 | . . . . . . . . . . . 16 . . . . . . . . . . . . . Parts Repaired . | . . . . . . . . . . . . . . . . . . . . . . . . . Time . | . . . . . . . . . . . . . . . . . . . . . . . . . Parts Recycled . | . . . . . . . . . . . . . . . . . . . . . . . . . Recycled Matter . | . . . . . . . . . . . . . . . . . . . . . . . . . Retrieved Matter . | . . . . . . . . . . . . . . . . . . . . . . . . . Retrieved Components 4 | . 3 . . . . 1 . . . . . . . . . . . . . . . . . . Parts Scanalyzed . | . . . . . . . . . . . . . . . . . . . . . . . . . Part Schematics Acquired . | . . . . . . . . . . . . . . . . . . . . . . . . . Parts Damaged . | . . . . . . . . . . . . . . . . . . . . . . . . . Bothacking | -11 -10 -9 -8 -8 -8 -7 -7 -7 -7 -6 -6 -6 -6 -6 -6 -5 -5 -5 -5 -5 -5 -4 -4 -3 ------------ Run | Scr Mat Mat Mat Sto Gar Fac Low Low Dat Pro Fac Gar Fac Low Zio Pro Fac Ext Cet Arc Hub Fac Gar Res Used RIF Installer . | . . . . . . . . . . . . . . . . . . . . . . . . . Robots Hacked . | . . . . . . . . . . . . . . . . . . . . . . . . . Non-combat . | . . . . . . . . . . . . . . . . . . . . . . . . . Combat . | . . . . . . . . . . . . . . . . . . . . . . . . . Robot Hacks Applied . | . . . . . . . . . . . . . . . . . . . . . . . . . Relay Couplers Released 15 | . . . . . . . . . . . . 3 . . . . . . . . 1 . 9 2 Machine Destruction 11 | . . . . . . . . . . . . 3 . . . . . . . . 1 . 5 2 Programmers 4 | . . . . . . . . . . . . . . . . . . . . . . . 4 . Fabnet Peak Effective % . | . . . . . . . . . . . . . . . . . . . . . . . . . Robots Rewired 8 | . . . . . . . 2 . . . . . . . . . . . . . . . 6 . Allies Hacked . | . . . . . . . . . . . . . . . . . . . . . . . . . Hacks Repelled . | . . . . . . . . . . . . . . . . . . . . . . . . . Allies | -11 -10 -9 -8 -8 -8 -7 -7 -7 -7 -6 -6 -6 -6 -6 -6 -5 -5 -5 -5 -5 -5 -4 -4 -3 -------- Run | Scr Mat Mat Mat Sto Gar Fac Low Low Dat Pro Fac Gar Fac Low Zio Pro Fac Ext Cet Arc Hub Fac Gar Res Total Allies 16 | . . . . . 2 . 2 . . 1 . 2 . . . . . 3 . . . . 6 . Largest Group 6 | . . . . . 2 2 2 2 2 2 . 2 . . . . . 1 . . . . 6 6 Highest-Rated Group 237 | . . . . . 62 62 62 52 52 96 . 84 . . . . . 159 . . . . 237 237 Highest-Rated Ally 159 | . . . . . 31 31 32 32 32 96 . 46 . . . . . 159 . . . . 49 49 Warlord Squad Rendezvous 4 | . . . . . . . . . . . . . . . . . . . . . . . . 4 Dakka 1 | . . . . . . . . . . . . . . . . . . . . . . . . 1 Infantry 1 | . . . . . . . . . . . . . . . . . . . . . . . . 1 Pyro 1 | . . . . . . . . . . . . . . . . . . . . . . . . 1 Ghost 1 | . . . . . . . . . . . . . . . . . . . . . . . . 1 Total Orders . | . . . . . . . . . . . . . . . . . . . . . . . . . Ally Attacks 83 | . . . . . 9 2 5 . . 6 . 11 . . . . . 9 . . . . 19 22 Total Damage 1893 | . . . . . 168 21 107 . . 183 . 298 . . . . . 171 . . . . 308 637 Kills 12 | . . . . . 1 . . . . . . 2 . . . . . 2 . . . . 2 5 Allies Corrupted . | . . . . . . . . . . . . . . . . . . . . . . . . . Allies Melted . | . . . . . . . . . . . . . . . . . . . . . . . . . Intel | -11 -10 -9 -8 -8 -8 -7 -7 -7 -7 -6 -6 -6 -6 -6 -6 -5 -5 -5 -5 -5 -5 -4 -4 -3 ------- Run | Scr Mat Mat Mat Sto Gar Fac Low Low Dat Pro Fac Gar Fac Low Zio Pro Fac Ext Cet Arc Hub Fac Gar Res Robot Analysis Total . | . . . . . . . . . . . . . . . . . . . . . . . . . Derelict Logs Recovered 5 | . . . . . . . . 1 . 2 . . . . 2 . . . . . . . . . Drone Launches . | . . . . . . . . . . . . . . . . . . . . . . . . . Drone Recoveries . | . . . . . . . . . . . . . . . . . . . . . . . . . Exploration | -11 -10 -9 -8 -8 -8 -7 -7 -7 -7 -6 -6 -6 -6 -6 -6 -5 -5 -5 -5 -5 -5 -4 -4 -3 ------------- Run | Scr Mat Mat Mat Sto Gar Fac Low Low Dat Pro Fac Gar Fac Low Zio Pro Fac Ext Cet Arc Hub Fac Gar Res Turns Passed 26855 | . 384 1230 672 986 2360 293 483 542 157 804 790 2343 2979 301 1613 327 2506 1352 478 237 575 97 2132 3214 Spaces Moved 10500 | 1 181 419 214 343 899 174 262 331 94 451 395 1130 951 124 664 125 832 438 165 113 208 59 789 1138 Core 295 | . . . . . . . . . . . . . . . . . . . . . . . . 295 Treads 9707 | . 174 417 214 343 883 174 262 331 94 451 395 1130 889 124 664 125 719 149 165 113 208 59 789 835 Legs 419 | 1 . . . . 16 . . . . . . . . . . . 113 289 . . . . . . Wheels 73 | . 7 2 . . . . . . . . . . 62 . . . . . . . . . . 2 Hover 6 | . . . . . . . . . . . . . . . . . . . . . . . . 6 Flight . | . . . . . . . . . . . . . . . . . . . . . . . . . Fastest Speed 50 | 120 100 145 240 245 160 160 160 160 160 160 145 145 160 242 242 242 190 190 160 160 160 160 160 50 Average Speed 208 | 120 157 234 240 245 235 160 160 160 160 160 154 167 237 242 242 242 240 224 183 160 204 160 221 203 Slowest Speed 2450 | 120 160 240 245 245 470 160 160 160 160 160 160 240 405 242 242 242 470 330 240 160 240 160 240 2450 Overloaded Moves . | . . . . . . . . . . . . . . . . . . . . . . . . . Propulsion Burnouts . | . . . . . . . . . . . . . . . . . . . . . . . . . Robots Hopped 1 | . . . . . . . . . . . . . . . 1 . . . . . . . . . Cave-ins Triggered . | . . . . . . . . . . . . . . . . . . . . . . . . . Exploration Rate (%) 46 | 1 52 42 25 57 99 6 40 59 69 63 12 78 32 28 88 31 19 59 60 93 25 2 94 30 Regions Visited 24 Branch Regions 12 Pre-discovered Areas 2 | . . . . . . . . . 1 . . . . . 1 . . . . . . . . . Known Exits Taken 8 | . . . 1 1 . 1 . . . . 1 . . . . 1 1 . . . 1 1 . . Unknown Exits Taken 13 | 1 1 1 . . . . 1 1 1 1 . . 1 1 1 . . 1 1 1 . . . . Scrap Searched 11 | . . . . . . . 2 4 . 1 . . . . 3 1 . . . . . . . . Spaces Dug 29 | . . . 6 10 . . . . . . . . 1 . . . 9 . . . 3 . . . Terrain Destroyed 679 | . . . 29 10 70 . . . . . 14 80 180 . . 23 77 6 27 10 42 . 85 26 Melee . | . . . . . . . . . . . . . . . . . . . . . . . . . Projectile 247 | . . . . . . . . . . . . 5 99 . . 4 47 6 16 10 42 . 8 10 AOE 428 | . . . 29 10 70 . . . . . 14 73 81 . . 19 30 . 11 . . . 76 15 Terrain Rammed . | . . . . . . . . . . . . . . . . . . . . . . . . . Walls Destroyed . | . . . . . . . . . . . . . . . . . . . . . . . . . Machines Disabled . | . . . . . . . . . . . . . . . . . . . . . . . . . Actions | -11 -10 -9 -8 -8 -8 -7 -7 -7 -7 -6 -6 -6 -6 -6 -6 -5 -5 -5 -5 -5 -5 -4 -4 -3 --------- Run | Scr Mat Mat Mat Sto Gar Fac Low Low Dat Pro Fac Gar Fac Low Zio Pro Fac Ext Cet Arc Hub Fac Gar Res Total 12978 | . 230 533 278 444 1046 186 307 340 101 497 476 1323 1245 125 669 138 1041 683 253 136 274 62 1007 1584 Wait 432 | . 1 . 7 17 13 . 3 2 . 3 9 19 56 . 3 . 22 115 2 8 24 . 72 56 Move 10471 | . 180 418 213 343 896 173 261 330 93 450 394 1129 950 123 661 124 831 437 164 112 207 58 786 1138 Hop 1 | . . . . . . . . . . . . . . . 1 . . . . . . . . . Pick Up 161 | . 4 18 3 8 6 8 3 . . 6 5 13 15 . 3 1 12 14 8 . 2 1 8 23 Fast Attach 141 | . 2 7 1 6 4 . 1 1 4 . 1 11 26 . . . 15 18 9 . . . 3 32 Attach 94 | . 1 3 2 1 4 1 2 1 . 3 5 10 9 1 . 4 6 7 1 . 1 2 7 23 Detach 8 | . . . . . 1 . . 1 . . . 1 1 . . 2 . . . . . . 1 1 Swap 147 | . 8 8 7 9 7 2 1 2 . 3 10 7 10 1 . . 13 14 10 2 3 . 9 21 Drop 193 | . 5 16 5 19 11 . 3 . 4 3 4 11 16 . . . 18 21 21 . 1 1 3 31 Fire 1203 | . 19 63 40 41 83 2 22 3 . 29 48 114 152 . 1 7 122 51 38 14 36 . 76 242 Melee 9 | . 9 . . . . . . . . . . . . . . . . . . . . . . . Ram 1 | . . . . . . . . . . . . . . . . . . . . . . . . 1 Kick 1 | . . . . . . . . . . . . . . . . . . 1 . . . . . . Crush 26 | . 1 . . . . . . . . . . . 8 . . . 2 . . . . . . 15 Escape Stasis 47 | . . . . . 20 . . . . . . 8 2 . . . . 5 . . . . 12 . Rewire 43 | . . . . . 1 . 11 . . . . . . . . . . . . . . . 30 1 Trap . | . . . . . . . . . . . . . . . . . . . . . . . . . Miscellaneous . | . . . . . . . . . . . . . . . . . . . . . . . . . Route ------- -11/Scrapyard -10/Materials (discovered 2 exits: *Mat / [*Min]) -9/Materials (discovered 2 exits: *Mat / Min) -8/Materials (discovered 4 exits: Fac x3 / *Sto) -8/Storage -8/Garrison (discovered 3 exits: *Fac x3) -7/Factory -7/Lower Caves -7/Lower Caves (discovered 2 exits: *Fac / *Dat) -7/Data Miner -6/Proximity Caves -6/Factory (discovered 2 exits: Fac / Gar) -6/Garrison (discovered 3 exits: *Fac x3) -6/Factory (discovered 2 exits: *Fac / [*Low]) -6/Lower Caves -6/Zion -5/Proximity Caves -5/Factory (discovered 8 exits: *Fac x4 / Upp x2 / *Ext x2) -5/Extension (discovered 2 exits: *Fac / *Cet) -5/Cetus (discovered 2 exits: *Fac / *Arc) -5/Archives (discovered 3 exits: *Fac / *Hub x2) -5/Hub_04(d) -4/Factory -4/Garrison (discovered 3 exits: [*Res x3]) -3/Research (discovered 2 exits: *Res x2) History --------- Turn | Location | Event 1 | -11/Scrapyard | Discovered new exit (range 0) 1 | -11/Scrapyard | Entered Materials 193 | -10/Materials | Discovered new exit (range 14) 332 | -10/Materials | Build established: Mutant 381 | -10/Materials | Discovered new exit (range 3) 385 | -10/Materials | Entered another Materials area 385 | -9/Materials | Evolved 2 slots: Utility x1, Weapon x1 805 | -9/Materials | Discovered new exit (range 16) 919 | -9/Materials | Build established: Scavenger-Mutant 1245 | -9/Materials | Build established: Scavenger-Gunner 1473 | -9/Materials | Identified exit to Mines 1615 | -9/Materials | Entered another Materials area 1615 | -8/Materials | Evolved 2 slots: Utility x1, Weapon x1 1937 | -8/Materials | Discovered new exit (range 14) 2083 | -8/Materials | Identified exit to Factory 2083 | -8/Materials | Identified exit to Storage 2117 | -8/Materials | Build established: Scavenger-Tank 2287 | -8/Materials | Entered Storage 2554 | -8/Storage | Build established: Tank 3273 | -8/Storage | Identified exit to Garrison 3273 | -8/Storage | Entered Garrison 3438 | -8/Garrison | Triggered checkpoint 3472 | -8/Garrison | Triggered checkpoint 3664 | -8/Garrison | Discovered exit to Factory (range 12) 3819 | -8/Garrison | Phase Generator disabled 4232 | -8/Garrison | Triggered checkpoint 4234 | -8/Garrison | Destroyed 7 combat bots 4378 | -8/Garrison | Triggered checkpoint 4478 | -8/Garrison | Triggered checkpoint 5014 | -8/Garrison | Triggered checkpoint 5050 | -8/Garrison | Rescued a captive Derelict 5051 | -8/Garrison | Rescued a captive Derelict 5245 | -8/Garrison | Discovered exit to Factory (range 10) 5276 | -8/Garrison | Attempted to access garrison exit controls, blocked by remote lockdown 5378 | -8/Garrison | Discovered exit to Factory (range 15) 5402 | -8/Garrison | Attempted to access garrison exit controls, blocked by remote lockdown 5440 | -8/Garrison | Triggered checkpoint 5633 | -8/Garrison | Entered Factory 5633 | -7/Factory | Accompanied by 2 allies 5633 | -7/Factory | Evolved 2 slots: Propulsion x2 5850 | -7/Factory | Discovered new exit (range 13) 5918 | -7/Factory | Identified exit to Lower Caves 5926 | -7/Factory | Entered Lower Caves 5926 | -7/Lower Caves | Accompanied by 2 allies 5978 | -7/Lower Caves | Met a Warlord Commander 5986 | -7/Lower Caves | Found Encrypted Comm Array 6082 | -7/Lower Caves | Attracted the attention of an 0b10 outpost 6132 | -7/Lower Caves | Destroyed 8 combat bots 6384 | -7/Lower Caves | Discovered new exit (range 13) 6409 | -7/Lower Caves | Entered another Lower Caves area 6409 | -7/Lower Caves | Accompanied by 2 allies 6432 | -7/Lower Caves | Build established: Scavenger-Tank 6449 | -7/Lower Caves | Discovered new exit (range 11) 6723 | -7/Lower Caves | Learned Factory garrison access intel 6895 | -7/Lower Caves | Discovered new exit (range 15) 6951 | -7/Lower Caves | Entered Data Miner 6951 | -7/Data Miner | Accompanied by 2 allies 6954 | -7/Data Miner | Discovered new exit (range 6) 6984 | -7/Data Miner | Met Data Miner 7017 | -7/Data Miner | Learned location of Section 7 (-3) 7017 | -7/Data Miner | Acquired the access code to Warlord's prototype stash 7045 | -7/Data Miner | Received God Mode back door access code from Data Miner 7108 | -7/Data Miner | Entered Proximity Caves 7108 | -6/Proximity Caves | Accompanied by 2 allies 7150 | -6/Proximity Caves | Escorted by Enhanced Grunt 7366 | -6/Proximity Caves | Spotted B-75 Beast 7410 | -6/Proximity Caves | Destroyed B-75 Beast 7703 | -6/Proximity Caves | Learned location of 1 exit from Factory 7754 | -6/Proximity Caves | Learned Factory terminal intel 7898 | -6/Proximity Caves | Discovered new exit (range 10) 7912 | -6/Proximity Caves | Entered Factory 7912 | -6/Factory | Evolved 2 slots: Power x1, Utility x1 7913 | -6/Factory | Identified exit to Factory 7914 | -6/Factory | Loaded intel: 26 terminal locations 7915 | -6/Factory | Loaded intel: 4 garrison access locations 8309 | -6/Factory | Destroyed 8 combat bots 8383 | -6/Factory | Fabricated Adv. Heavy Treads (x2) 8579 | -6/Factory | Garrison activated, responded to threat 8698 | -6/Factory | Identified exit to Garrison 8702 | -6/Factory | Entered Garrison 8728 | -6/Garrison | Triggered checkpoint 8871 | -6/Garrison | Spotted B-75 Beast 8874 | -6/Garrison | Triggered checkpoint 8933 | -6/Garrison | Destroyed B-75 Beast 8960 | -6/Garrison | Triggered checkpoint 9033 | -6/Garrison | Discovered new exit (range 12) 9098 | -6/Garrison | Triggered checkpoint 9160 | -6/Garrison | Rescued a captive Derelict 9161 | -6/Garrison | Rescued a captive Derelict 9183 | -6/Garrison | Lost 3 parts (1u2w) 9236 | -6/Garrison | Triggered checkpoint 9290 | -6/Garrison | Triggered checkpoint 9320 | -6/Garrison | Triggered checkpoint 9446 | -6/Garrison | Build established: Scavenger-Gunner 9461 | -6/Garrison | Discovered new exit (range 10) 9510 | -6/Garrison | Triggered checkpoint 9614 | -6/Garrison | Triggered checkpoint 9725 | -6/Garrison | Discovered new exit (range 5) 9911 | -6/Garrison | Garrison Relay disabled 9916 | -6/Garrison | Triggered checkpoint 9945 | -6/Garrison | Lost 5 parts (2n3w) 9954 | -6/Garrison | Destroyed 7 combat bots 10762 | -6/Garrison | Phase Generator disabled 10934 | -6/Garrison | Learned Factory security intel 11045 | -6/Garrison | Entered Factory 11188 | -6/Factory | Spotted B-75 Beast 11296 | -6/Factory | Destroyed B-75 Beast 11395 | -6/Factory | First assault squad dispatched 11411 | -6/Factory | Incoming assault squad redirected 11575 | -6/Factory | Destroyed 9 combat bots 11698 | -6/Factory | Build established: Scavenger-Tank 11931 | -6/Factory | Incoming assault squad redirected 12116 | -6/Factory | Incoming assault squad redirected 12125 | -6/Factory | Incoming assault squad redirected 12397 | -6/Factory | Build established: Scavenger-Gunner 12797 | -6/Factory | Incoming investigation squad redirected 12893 | -6/Factory | Build established: Scavenger-Tank 13098 | -6/Factory | Discovered exit to Factory (range 21) 13160 | -6/Factory | Incoming assault squad redirected 13162 | -6/Factory | Incoming assault squad redirected 13274 | -6/Factory | Core integrity fell below 50% 13862 | -6/Factory | Incoming assault squad redirected 13868 | -6/Factory | Incoming assault squad redirected 14007 | -6/Factory | Discovered new exit (range 7) 14024 | -6/Factory | Entered Lower Caves 14304 | -6/Lower Caves | A Derelict revealed a hidden shortcut to a safe place 14304 | -6/Lower Caves | Encountered a Warlord checkpoint 14325 | -6/Lower Caves | Entered Zion 14628 | -6/Zion | Acquired unknown access codes intercepted by a Zionite 14664 | -6/Zion | Learned location of 2 exits from Factory 14688 | -6/Zion | Learned Factory terminal intel 15211 | -6/Zion | Given the Hacking Drone Bay 15637 | -6/Zion | Build established: Scavenger-Mutant 15692 | -6/Zion | Found CR-A16's Pointy Stick 15764 | -6/Zion | Received a visual enhancement algorithm 15876 | -6/Zion | Discovered new exit (range 12) 15938 | -6/Zion | Entered Proximity Caves 16201 | -5/Proximity Caves | Discovered exit to Factory (range 15) 16265 | -5/Proximity Caves | Entered Factory 16265 | -5/Factory | Evolved 2 slots: Utility x2 16266 | -5/Factory | Identified exit to Factory 16267 | -5/Factory | Loaded intel: 28 terminal locations 16436 | -5/Factory | Identified exit to Upper Caves 16436 | -5/Factory | Identified exit to Extension 16747 | -5/Factory | Build established: Scavenger-Tank 17235 | -5/Factory | Discovered exit to Factory (range 9) 17426 | -5/Factory | Discovered exit to Factory (range 20) 18523 | -5/Factory | Lost 3 parts (1n1u1w) 18771 | -5/Factory | Entered Extension 18773 | -5/Extension | Disrupted transfer network 18857 | -5/Extension | Rescued a captive Derelict 19054 | -5/Extension | Rescued a captive Derelict 19288 | -5/Extension | Rescued A7 19347 | -5/Extension | Found Prototype Protection 19348 | -5/Extension | Identified Med. Regenerative Plating 19489 | -5/Extension | Spotted B-75 Beast 19501 | -5/Extension | Spotted B-75 Beast 19627 | -5/Extension | Destroyed B-75 Beast 19730 | -5/Extension | Destroyed B-75 Beast 19767 | -5/Extension | Extracted ID and sensor layout for unrecognized location from A7's data core 19885 | -5/Extension | Build established: Scavenger-Gunner 20024 | -5/Extension | Discovered exit to Factory (range 22) 20024 | -5/Extension | Discovered new exit (range 22) 20123 | -5/Extension | Entered Cetus 20150 | -5/Cetus | Spotted Cetus Guard 20150 | -5/Cetus | Spotted Cetus Guard 20150 | -5/Cetus | Spotted Cetus Guard 20150 | -5/Cetus | Spotted Cetus Guard 20171 | -5/Cetus | Destroyed Cetus Guard 20174 | -5/Cetus | Destroyed Cetus Guard 20197 | -5/Cetus | Destroyed Cetus Guard 20207 | -5/Cetus | Destroyed Cetus Guard 20410 | -5/Cetus | Discovered new exit (range 22) 20456 | -5/Cetus | Build established: Scavenger-Tank 20459 | -5/Cetus | Spotted Cetus Guard 20459 | -5/Cetus | Spotted Cetus Guard 20459 | -5/Cetus | Spotted Cetus Guard 20459 | -5/Cetus | Spotted Cetus Guard 20463 | -5/Cetus | Destroyed Cetus Guard 20470 | -5/Cetus | Destroyed Cetus Guard 20480 | -5/Cetus | Destroyed Cetus Guard 20483 | -5/Cetus | Destroyed Cetus Guard 20486 | -5/Cetus | Discovered exit to Factory (range 22) 20513 | -5/Cetus | Met Revision 17 20601 | -5/Cetus | Entered Archives 20694 | -5/Archives | Discovered new exit (range 21) 20700 | -5/Archives | Discovered new exit (range 22) 20712 | -5/Archives | Unable to access archive contents 20720 | -5/Archives | Discovered exit to Factory (range 22) 20838 | -5/Archives | Entered Hub_04(d) 21056 | -5/Hub_04(d) | Incoming investigation squad redirected 21244 | -5/Hub_04(d) | Disrupted transfer network 21361 | -5/Hub_04(d) | Discovered exit to Factory (range 8) 21413 | -5/Hub_04(d) | Entered Factory 21413 | -4/Factory | Evolved 2 slots: Utility x2 21503 | -4/Factory | Identified exit to Garrison 21510 | -4/Factory | Entered Garrison 21554 | -4/Garrison | Triggered checkpoint 21690 | -4/Garrison | Spotted B-86 Titan 21713 | -4/Garrison | Triggered checkpoint 21737 | -4/Garrison | Lost 3 parts (1p2w) 21740 | -4/Garrison | Destroyed B-86 Titan 21761 | -4/Garrison | Triggered checkpoint 21805 | -4/Garrison | Found Hvy. Reflective Plating 21918 | -4/Garrison | Discovered new exit (range 10) 22020 | -4/Garrison | Triggered checkpoint 22131 | -4/Garrison | Triggered checkpoint 22233 | -4/Garrison | Phase Generator disabled 22263 | -4/Garrison | Discovered new exit (range 5) 22328 | -4/Garrison | Triggered checkpoint 22950 | -4/Garrison | Discovered new exit (range 13) 22974 | -4/Garrison | Triggered checkpoint 22993 | -4/Garrison | Garrison Relay disabled 23032 | -4/Garrison | Triggered checkpoint 23160 | -4/Garrison | Triggered checkpoint 23318 | -4/Garrison | Attempted to access garrison exit controls, blocked by remote lockdown 23477 | -4/Garrison | Attempted to access garrison exit controls, blocked by remote lockdown 23642 | -4/Garrison | Entered Research 23642 | -3/Research | Accompanied by 6 allies 23642 | -3/Research | Evolved 2 slots: Utility x2 23924 | -3/Research | First assault squad dispatched 24067 | -3/Research | Joined by Warlord Dakka squad 24244 | -3/Research | Joined by Warlord Infantry squad 24307 | -3/Research | Discovered new exit (range 20) 24416 | -3/Research | Discovered new exit (range 21) 24706 | -3/Research | Joined by Warlord Pyro squad 24908 | -3/Research | Incoming assault squad redirected 25072 | -3/Research | Identified exit to Research 25178 | -3/Research | Joined by Warlord Ghost squad 25487 | -3/Research | System corruption reached 10% 25934 | -3/Research | Incoming assault squad redirected 25972 | -3/Research | Lost 11 parts (1p1n5u4w) 26075 | -3/Research | Lost 7 parts (1p1n3u2w) 26331 | -3/Research | Incoming assault squad redirected 26353 | -3/Research | System corruption reached 30% 26383 | -3/Research | Lost 6 parts (2n3u1w) 26677 | -3/Research | Core integrity fell below 50% 26705 | -3/Research | Spotted B-86 Titan 26707 | -3/Research | Lost 7 parts (4u3w) 26763 | -3/Research | Core integrity fell below 20% 26826 | -3/Research | Spotted B-86 Titan 26856 | -3/Research | Destroyed by P-80 Master with Gamma Rifle Last Messages --------------- 26707_ B-86 Titan activates siege mode. 26709_ Slug penetrates Wall. 26711_ System corrupted: Energy discharge (-13). 26725_ Dropped Adv. Heavy Siege Treads. 26725_ Acquired Imp. Gyrokinetic Inverter. 26730_ Acquired Reflective Plating. 26741_ Slammed into S-43 Plague. 26743_ System corrupted: Energy discharge (-6). 26743_ Slammed into S-43 Plague. 26744_ Dropped Reflective Plating. 26759_ System corrupted: Matter fused (-6). 26775_ :NFDNPGJNMG: BZGSKXU8 26778_ Adv. Heavy Siege Treads destroyed. 26779_ Door malfunctions. 26793_ System corrupted: Energy discharge (-23). 26810_ System corrupted: Component data lost. 26825_ System corrupted: Energy discharge (-29). 26835_ Slammed into S-43 Plague. 26841_ System corrupted: Matter fused (-9). 26853_ Slammed into S-43 Plague. Map ----- +----------------------------------------------------+ | | | | | | | | | ?????????????????????????????????????????????????? | | ?????????????????????????????????????????????????? | | ?????????????????????????????????????????????????? | | ?????????????????????????????????????????????????? | | ?????????????????????????????????????????????????? | | ?????????????????????????????????????????????????? | | ?????????????????????????????????????????????????? | | ?????????????????????########????##??????????????? | | ?????????????????????# ! #???? #??????????????? | | ?????????????????????# #??? #??????????##### | | #+#########+###+####?# #??? #??????????# | | #?# #?? #??????????# | | #?# #?? ############ | | #??? ?? # ## [/ | | ! !!! #??###+###? # ## // | | # !!! #### ###??# # # """ ## /| | | !! #??# #????# # # """ ## | | #??# #????# + !! #? """ ## / | | ??! #??# #????# s # ! #? ?#! | | ??? #??# #????# s s # #? ???# ! | | ????? ####/######## #########? ?????# % | | ?????? # #??#@## ###+############ | | ???????# # ####p## = | | ???????# # + =!*%! | | ???????# # ####### % % !%=% | | ???????+ + #????## % % % %!|== | | ???????# # #????## %= ################ | | ???????# # #????####*[###??????????????? | | ???????# # #??????##= # #??????????????? | | ???????# # #?????### ###??????????????? | | ???????# #############??# #* ##???????????????? | | ???????# # ! #??### ##???????????????? | | ???????# # #####[=[%#???????????????? | | ???????# # + / #######?????????? | | ???????# #!!%! ##### # *?????????? | | ??????# #!!==[ #???# # ?????????? | | ????# #=![%!! #???# # """#???????? | | "" ??# #[*!*!% #???# # """????????? | | """ # ###/###########?# # """######### | | F" + #?# # """## | | """ # #?# # """## ^ | | "" ??# #?# # ?# | | ????# #?# # ## | | !??????# ########## #?# #? ? ?# ### | | ???????# #?? # #?# #? ? ?# #?# | | ???????# # # ### ###+###### #?# | +----------------------------------------------------+ Best States ------------- Heat Dissipation 127 Coolant Potential 50 Energy Generation 45 Energy Capacity 600 Matter Stores 300 Matter Capacity 300 Sight Range 22 Robot Scan Range 16 Terrain Scan Density 10 Armor Coverage 1350 Resistance: KI 45 Resistance: TH 45 Resistance: EX 45 Resistance: EM 45 Resistance: I 20 Resistance: S 20 Resistance: P 20 Core Shielding 30 Weapon Cycling 20 Evasion (%) 50 Targeting Accuracy 6 Target Analysis 12 Core Analysis 6 Armor Integrity Analysis 30 Recoil Reduction 4 Matter Filtering 30 Kinecelleration 40 Offensive Hacking 20 Authchip Count 1 Item Schematics ----------------- Combat Drone Bay | -7/Data Miner | Free Lgt. Regenerative Plating | -7/Data Miner | Free Cld. Cesium-ion Thruster | -7/Data Miner | Free Gravity Neutralizer | -7/Data Miner | Free Ion Burst Cannon | -7/Data Miner | Free Gyrokinetic Inverter | -7/Data Miner | Free Adv. Shield Generator | -7/Data Miner | Free Smartbomb Launcher | -7/Data Miner | Free Fusion Compressor | -7/Data Miner | Free Arm. Medium Treads | -7/Data Miner | Free Imp. System Guard | -7/Data Miner | Free Micro-nuke Launcher | -7/Data Miner | Free Imp. Trap Scanner | -6/Zion | Archive Point Defense System | -6/Zion | Archive Mapping Drone Bay | -6/Zion | Archive Enh. Optical Array | -6/Zion | Archive Imp. Launcher Guidance Computer | -6/Zion | Archive Mak. Transmission Jammer | -6/Zion | Archive Antimatter Reactor | -6/Zion | Archive Imp. Remote Datajack | -6/Zion | Archive Matter Compressor | -6/Zion | Archive Nuclear Pulse Thruster | -6/Zion | Archive Hvy. Treads | -6/Zion | Archive Imp. Medium Treads | -6/Zion | Archive Imp. Component Analysis Suite | -6/Zion | Archive Drone Bay | -6/Zion | Archive Matter Neutralizer | -6/Zion | Archive Lrn. Phase Cannon | -6/Zion | Archive Robot Schematics ------------------ G-47 Trooper | -7/Data Miner | Free R-10 Processor | -7/Data Miner | Free B-48 Gladiator | -7/Data Miner | Free G-50 Soldier | -7/Data Miner | Free L-41 Fighter | -7/Data Miner | Free S-27 Virus | -6/Zion | Archive M-28 Smith | -6/Zion | Archive Fabricated ------------ Adv. Heavy Treads | x2 | -6/Factory | Preloaded Alien Tech Used ----------------- None Achievements -------------- Left-hand Path Challenges ------------ None Game ------ Seed SpectralRecyclingCoupler Manual? 0 Play Time 03:41:30 Cumulative 203.6 hours Start 2022.07.05 @ 00:54:45 End 2022.07.05 @ 12:11:54 Sessions 3 Manual Loads 0 Difficulty Adventurer Special Mode None Game No. 82 Rogue 63 Adventurer 16 Explorer 3 Win Type - Total 9 Types 4/0/1/2/0/0/1/0/1 Lore% 58 Gallery% 77 Achievement% 74 Wizard Run 0 Options --------- ASCII 0 Keyboard 0 Movement Numpad Keybinds 0 Fullscreen 1 Font 24/Smallcaps Map View 76x50 Tactical HUD 1 Map Filters NONE Filters LOW_CONTRAST(13,24,33) Steam 1 RUN: cb859a4b-407a-477a-8657-75446c35b258